[Event "Titled Tuesday Blitz May 24 Early 2022"]
[White "Korchmar, Vasiliy"]
[Black "Antipov, Mikhail Al."]
[WhiteFideId "24131750"]
[BlackFideId "4107012"]
[WhiteElo "2370"]
[BlackElo "2512"]
[Result "0-1"]
[Round "03"]
[TimeControl "180+1"]
[Date "2022.05.24"]
[WhiteClock "0:00:01"]
[BlackClock "0:00:02"]

1. e4 {[%clk 0:03:00]}  c5 {[%clk 0:02:59]} 2. Nf3 {[%clk 0:03:00]}  d6 {[%clk 0:02:58]} 3. d4 {[%clk 0:03:00]}  cxd4 {[%clk 0:02:58]} 4. Nxd4 {[%clk 0:03:01]}  Nf6 {[%clk 0:02:59]} 5. Nc3 {[%clk 0:03:01]}  a6 {[%clk 0:02:59]} 6. f3 {[%clk 0:03:00]}  e5 {[%clk 0:02:57]} 7. Nb3 {[%clk 0:02:59]}  Be7 {[%clk 0:02:57]} 8. Be3 {[%clk 0:02:55]}  Be6 {[%clk 0:02:57]} 9. Qd2 {[%clk 0:02:55]}  O-O {[%clk 0:02:57]} 10. g4 {[%clk 0:02:55]}  d5 {[%clk 0:02:55]} 11. g5 {[%clk 0:01:50]}  d4 {[%clk 0:02:55]} 12. gxf6 {[%clk 0:01:50]}  Bxf6 {[%clk 0:02:55]} 13. O-O-O {[%clk 0:01:24]}  Nc6 {[%clk 0:02:41]} 14. Rg1 {[%clk 0:01:13]}  Rc8 {[%clk 0:02:10]} 15. Bh6 {[%clk 0:01:01]}  dxc3 {[%clk 0:02:01]} 16. Qg2 {[%clk 0:01:01]}  Qb6 {[%clk 0:00:31]} 17. Bxg7 {[%clk 0:00:46]}  Qxg1 {[%clk 0:00:30]} 18. Qxg1 {[%clk 0:00:46]}  cxb2+ {[%clk 0:00:30]} 19. Kxb2 {[%clk 0:00:45]}  Bxg7 {[%clk 0:00:31]} 20. Qg3 {[%clk 0:00:30]}  Kh8 {[%clk 0:00:17]} 21. Bh3 {[%clk 0:00:31]}  f5 {[%clk 0:00:12]} 22. Rd6 {[%clk 0:00:27]}  Nd4 {[%clk 0:00:07]} 23. c3 {[%clk 0:00:09]}  Bxb3 {[%clk 0:00:03]} 24. axb3 {[%clk 0:00:10]}  Rxc3 {[%clk 0:00:02]} 25. Rd7 {[%clk 0:00:04]}  Bf6 {[%clk 0:00:01]} 26. Bxf5 {[%clk 0:00:02]}  Rxb3+ {[%clk 0:00:02]} 27. Ka2 {[%clk 0:00:02]}  Nxf5 {[%clk 0:00:02]} 28. exf5 {[%clk 0:00:02]}  Rb4 {[%clk 0:00:03]} 29. Ka3 {[%clk 0:00:01]}  Rf4 {[%clk 0:00:02]} 30. Rxb7 {[%clk 0:00:01]}  Rxf5 {[%clk 0:00:02]} 31. Qh3 {[%clk 0:00:01]}  Bg7 {[%clk 0:00:02]} 32. Qg4 {[%clk 0:00:01]}  Rxf3+ {[%clk 0:00:02]} 33. Rb3 {[%clk 0:00:01]}  R3f7 {[%clk 0:00:02]} 0-1


[Site "https://www.chess.com"]

[Event "Titled Tuesday Blitz May 24 Early 2022"]
[White "Kosteniuk, Alexandra"]
[Black "Navalgund, Niranjan"]
[WhiteFideId "4128125"]
[BlackFideId "5030854"]
[WhiteElo "2469"]
[BlackElo "2290"]
[Result "1-0"]
[Round "03"]
[TimeControl "180+1"]
[Date "2022.05.25"]
[WhiteClock "0:01:07"]
[BlackClock "0:00:04"]

1. e4 {[%clk 0:03:00]}  e5 {[%clk 0:02:58]} 2. Nf3 {[%clk 0:03:00]}  Nc6 {[%clk 0:02:58]} 3. Bc4 {[%clk 0:03:00]}  Bc5 {[%clk 0:02:54]} 4. c3 {[%clk 0:03:00]}  Nf6 {[%clk 0:02:54]} 5. d4 {[%clk 0:03:00]}  exd4 {[%clk 0:02:54]} 6. b4 {[%clk 0:03:00]}  Bb6 {[%clk 0:02:44]} 7. e5 {[%clk 0:02:57]}  d5 {[%clk 0:02:05]} 8. exf6 {[%clk 0:02:51]}  dxc4 {[%clk 0:01:47]} 9. Qe2+ {[%clk 0:02:51]}  Be6 {[%clk 0:01:46]} 10. b5 {[%clk 0:02:51]}  d3 {[%clk 0:01:40]} 11. Qe4 {[%clk 0:02:51]}  Na5 {[%clk 0:01:08]} 12. fxg7 {[%clk 0:02:44]}  Rg8 {[%clk 0:01:08]} 13. Bg5 {[%clk 0:02:41]}  Qd5 {[%clk 0:00:53]} 14. Qxh7 {[%clk 0:02:29]}  f6 {[%clk 0:00:44]} 15. Bxf6 {[%clk 0:02:19]}  Bf5 {[%clk 0:00:32]} 16. Qh5+ {[%clk 0:02:12]}  Kd7 {[%clk 0:00:28]} 17. O-O {[%clk 0:02:05]}  Be6 {[%clk 0:00:19]} 18. Ne5+ {[%clk 0:01:57]}  Kd6 {[%clk 0:00:19]} 19. Nd2 {[%clk 0:01:57]}  Rae8 {[%clk 0:00:18]} 20. Qh4 {[%clk 0:01:49]}  c6 {[%clk 0:00:17]} 21. Qf4 {[%clk 0:01:45]}  Kc7 {[%clk 0:00:16]} 22. Nxc6+ {[%clk 0:01:44]}  Kc8 {[%clk 0:00:15]} 23. Qb8+ {[%clk 0:01:35]}  Kd7 {[%clk 0:00:14]} 24. Ne5+ {[%clk 0:01:35]}  Qxe5 {[%clk 0:00:13]} 25. Qxe5 {[%clk 0:01:36]}  Bc7 {[%clk 0:00:13]} 26. Qd4+ {[%clk 0:01:33]}  Kc8 {[%clk 0:00:13]} 27. Qxa7 {[%clk 0:01:32]}  Bd5 {[%clk 0:00:12]} 28. b6 {[%clk 0:01:27]}  Nc6 {[%clk 0:00:07]} 29. Qa8+ {[%clk 0:01:24]}  Bb8 {[%clk 0:00:07]} 30. Rae1 {[%clk 0:01:19]}  Re2 {[%clk 0:00:07]} 31. Rxe2 {[%clk 0:01:17]}  dxe2 {[%clk 0:00:08]} 32. Re1 {[%clk 0:01:18]}  Re8 {[%clk 0:00:09]} 33. f4 {[%clk 0:01:15]}  Bf7 {[%clk 0:00:05]} 34. Nf3 {[%clk 0:01:09]}  Bd5 {[%clk 0:00:04]} 35. Be5 {[%clk 0:01:08]}  Kd7 {[%clk 0:00:04]} 36. Qxb7+ {[%clk 0:01:07]} 1-0


[Site "https://www.chess.com"]

[Event "Titled Tuesday Blitz May 24 Early 2022"]
[White "Kozak, Antoni"]
[Black "Kamsky, Gata"]
[WhiteFideId "21832030"]
[BlackFideId "2000024"]
[WhiteElo "2322"]
[BlackElo "2645"]
[Result "1/2-1/2"]
[Round "03"]
[TimeControl "180+1"]
[Date "2022.05.24"]
[WhiteClock "0:00:06"]
[BlackClock "0:00:28"]

1. Nf3 {[%clk 0:03:00]}  Nf6 {[%clk 0:02:59]} 2. c4 {[%clk 0:02:59]}  b6 {[%clk 0:02:55]} 3. g3 {[%clk 0:02:58]}  Bb7 {[%clk 0:02:55]} 4. Bg2 {[%clk 0:02:59]}  g6 {[%clk 0:02:54]} 5. O-O {[%clk 0:02:59]}  Bg7 {[%clk 0:02:54]} 6. Nc3 {[%clk 0:02:58]}  c5 {[%clk 0:02:54]} 7. d4 {[%clk 0:02:55]}  cxd4 {[%clk 0:02:41]} 8. Qxd4 {[%clk 0:02:55]}  O-O {[%clk 0:02:40]} 9. Qh4 {[%clk 0:02:55]}  d6 {[%clk 0:02:33]} 10. Bh6 {[%clk 0:02:51]}  Nbd7 {[%clk 0:02:20]} 11. Rac1 {[%clk 0:02:44]}  Bxf3 {[%clk 0:02:15]} 12. exf3 {[%clk 0:02:33]}  Rc8 {[%clk 0:02:14]} 13. b3 {[%clk 0:02:30]}  Bxh6 {[%clk 0:02:08]} 14. Qxh6 {[%clk 0:02:30]}  a6 {[%clk 0:02:05]} 15. Qe3 {[%clk 0:02:20]}  Re8 {[%clk 0:02:02]} 16. Rfe1 {[%clk 0:02:19]}  Rc5 {[%clk 0:01:49]} 17. f4 {[%clk 0:01:58]}  Qb8 {[%clk 0:01:45]} 18. a4 {[%clk 0:01:55]}  a5 {[%clk 0:01:42]} 19. Rcd1 {[%clk 0:01:48]}  Rcc8 {[%clk 0:01:36]} 20. Rd2 {[%clk 0:01:47]}  Nc5 {[%clk 0:01:35]} 21. Nb5 {[%clk 0:01:42]}  Na6 {[%clk 0:01:27]} 22. Rde2 {[%clk 0:01:41]}  Nc5 {[%clk 0:01:24]} 23. Bf3 {[%clk 0:01:29]}  Rcd8 {[%clk 0:01:21]} 24. Qc3 {[%clk 0:01:28]}  e5 {[%clk 0:01:15]} 25. Bg2 {[%clk 0:01:00]}  Kg7 {[%clk 0:01:15]} 26. fxe5 {[%clk 0:00:56]}  dxe5 {[%clk 0:01:13]} 27. Qc2 {[%clk 0:00:34]}  h5 {[%clk 0:01:05]} 28. Nc3 {[%clk 0:00:31]}  Rd4 {[%clk 0:01:02]} 29. Nd5 {[%clk 0:00:27]}  Nxd5 {[%clk 0:01:02]} 30. Bxd5 {[%clk 0:00:28]}  f6 {[%clk 0:01:00]} 31. Re3 {[%clk 0:00:17]}  Qd6 {[%clk 0:00:57]} 32. Qe2 {[%clk 0:00:17]}  e4 {[%clk 0:00:55]} 33. Rd1 {[%clk 0:00:15]}  Qe5 {[%clk 0:00:53]} 34. Rxd4 {[%clk 0:00:13]}  Qxd4 {[%clk 0:00:53]} 35. Kg2 {[%clk 0:00:13]}  Re5 {[%clk 0:00:53]} 36. Qc2 {[%clk 0:00:09]}  f5 {[%clk 0:00:49]} 37. Qe2 {[%clk 0:00:09]}  Kh6 {[%clk 0:00:48]} 38. h4 {[%clk 0:00:09]}  Nd3 {[%clk 0:00:46]} 39. Kf1 {[%clk 0:00:05]}  Kg7 {[%clk 0:00:44]} 40. Qd2 {[%clk 0:00:05]}  Qa1+ {[%clk 0:00:40]} 41. Kg2 {[%clk 0:00:05]}  Qd4 {[%clk 0:00:38]} 42. Kf1 {[%clk 0:00:05]}  Qa1+ {[%clk 0:00:30]} 43. Kg2 {[%clk 0:00:06]}  Qd4 {[%clk 0:00:28]} 44. Kf1 {[%clk 0:00:06]} 1/2-1/2


[Site "https://www.chess.com"]

[Event "Titled Tuesday Blitz May 24 Early 2022"]
[White "Kruckenhauser, Arthur"]
[Black "Vittorino, Carlo Giovanni"]
[WhiteFideId "1642812"]
[BlackFideId "4401247"]
[WhiteElo "2243"]
[BlackElo "2233"]
[Result "1-0"]
[Round "03"]
[TimeControl "180+1"]
[Date "2022.05.25"]
[WhiteClock "0:02:02"]
[BlackClock "0:01:31"]

1. e4 {[%clk 0:03:00]}  c5 {[%clk 0:02:59]} 2. Nf3 {[%clk 0:02:59]}  d6 {[%clk 0:02:59]} 3. d4 {[%clk 0:02:59]}  cxd4 {[%clk 0:02:59]} 4. Nxd4 {[%clk 0:03:00]}  Nf6 {[%clk 0:03:00]} 5. Nc3 {[%clk 0:03:01]}  g6 {[%clk 0:03:00]} 6. h4 {[%clk 0:02:56]}  Nc6 {[%clk 0:02:54]} 7. Bg5 {[%clk 0:02:43]}  Bg7 {[%clk 0:02:51]} 8. Nxc6 {[%clk 0:02:42]}  bxc6 {[%clk 0:02:51]} 9. Be2 {[%clk 0:02:43]}  h6 {[%clk 0:02:49]} 10. Be3 {[%clk 0:02:42]}  Qa5 {[%clk 0:02:47]} 11. Qd2 {[%clk 0:02:39]}  Rb8 {[%clk 0:02:46]} 12. Rb1 {[%clk 0:02:34]}  Rxb2 {[%clk 0:02:33]} 13. Rxb2 {[%clk 0:02:32]}  Nxe4 {[%clk 0:02:33]} 14. Nxe4 {[%clk 0:02:28]}  Qxd2+ {[%clk 0:02:33]} 15. Kxd2 {[%clk 0:02:27]}  Bxb2 {[%clk 0:02:32]} 16. Rb1 {[%clk 0:02:27]}  Bg7 {[%clk 0:02:12]} 17. Bxa7 {[%clk 0:02:21]}  O-O {[%clk 0:02:10]} 18. Rb8 {[%clk 0:02:21]}  f5 {[%clk 0:02:08]} 19. Nc3 {[%clk 0:02:14]}  Kf7 {[%clk 0:02:00]} 20. a4 {[%clk 0:02:13]}  d5 {[%clk 0:01:55]} 21. a5 {[%clk 0:02:11]}  d4 {[%clk 0:01:40]} 22. Bc4+ {[%clk 0:02:08]}  e6 {[%clk 0:01:38]} 23. Na4 {[%clk 0:02:04]}  Be5 {[%clk 0:01:36]} 24. Ra8 {[%clk 0:02:05]}  Bf4+ {[%clk 0:01:31]} 25. Ke1 {[%clk 0:02:02]} 1-0


[Site "https://www.chess.com"]

[Event "Titled Tuesday Blitz May 24 Early 2022"]
[White "Kuznetsov, Mikhail"]
[Black "Reprintsev, Alexander"]
[WhiteFideId "4117190"]
[BlackFideId "14100541"]
[WhiteElo "1981"]
[BlackElo "2108"]
[Result "0-1"]
[Round "03"]
[TimeControl "180+1"]
[Date "2022.05.25"]
[WhiteClock "0:00:02"]
[BlackClock "0:00:16"]

1. Nf3 {[%clk 0:03:00]}  d5 {[%clk 0:02:59]} 2. g3 {[%clk 0:03:01]}  Nc6 {[%clk 0:02:59]} 3. Bg2 {[%clk 0:03:01]}  e5 {[%clk 0:02:59]} 4. d3 {[%clk 0:03:02]}  Bg4 {[%clk 0:02:57]} 5. O-O {[%clk 0:03:01]}  Qd7 {[%clk 0:02:57]} 6. c4 {[%clk 0:03:00]}  Nf6 {[%clk 0:02:55]} 7. cxd5 {[%clk 0:02:59]}  Nxd5 {[%clk 0:02:55]} 8. Nc3 {[%clk 0:03:00]}  Nxc3 {[%clk 0:02:52]} 9. bxc3 {[%clk 0:03:00]}  Bh3 {[%clk 0:02:52]} 10. Rb1 {[%clk 0:02:56]}  Bxg2 {[%clk 0:02:52]} 11. Kxg2 {[%clk 0:02:54]}  b6 {[%clk 0:02:52]} 12. Qa4 {[%clk 0:02:51]}  Bd6 {[%clk 0:02:52]} 13. Ba3 {[%clk 0:02:48]}  O-O {[%clk 0:02:51]} 14. Bxd6 {[%clk 0:02:47]}  cxd6 {[%clk 0:02:50]} 15. c4 {[%clk 0:02:46]}  f5 {[%clk 0:02:49]} 16. d4 {[%clk 0:02:13]}  e4 {[%clk 0:02:48]} 17. Nd2 {[%clk 0:02:14]}  Rf7 {[%clk 0:02:46]} 18. e3 {[%clk 0:02:12]}  Raf8 {[%clk 0:02:44]} 19. Rb5 {[%clk 0:01:57]}  g5 {[%clk 0:02:42]} 20. Qa3 {[%clk 0:01:42]}  h6 {[%clk 0:02:38]} 21. Rd5 {[%clk 0:01:41]}  Rf6 {[%clk 0:02:35]} 22. c5 {[%clk 0:01:41]}  f4 {[%clk 0:02:14]} 23. exf4 {[%clk 0:01:25]}  gxf4 {[%clk 0:02:14]} 24. h3 {[%clk 0:01:01]}  fxg3 {[%clk 0:01:35]} 25. Nxe4 {[%clk 0:00:51]}  Rg6 {[%clk 0:01:24]} 26. Nxg3 {[%clk 0:00:48]}  h5 {[%clk 0:01:13]} 27. Rxh5 {[%clk 0:00:41]}  Nxd4 {[%clk 0:01:09]} 28. Qd3 {[%clk 0:00:31]}  Qc6+ {[%clk 0:01:06]} 29. f3 {[%clk 0:00:13]}  dxc5 {[%clk 0:01:07]} 30. Qc4+ {[%clk 0:00:07]}  Qe6 {[%clk 0:01:04]} 31. Qxe6+ {[%clk 0:00:06]}  Nxe6 {[%clk 0:01:04]} 32. Re5 {[%clk 0:00:03]}  Nf4+ {[%clk 0:01:04]} 33. Kh2 {[%clk 0:00:03]}  Rf7 {[%clk 0:00:54]} 34. Re8+ {[%clk 0:00:02]}  Kh7 {[%clk 0:00:54]} 35. Re4 {[%clk 0:00:01]}  Rgf6 {[%clk 0:00:47]} 36. Rfe1 {[%clk 0:00:01]}  b5 {[%clk 0:00:43]} 37. Re7 {[%clk 0:00:01]}  a6 {[%clk 0:00:42]} 38. Rxf7+ {[%clk 0:00:02]}  Rxf7 {[%clk 0:00:43]} 39. Re5 {[%clk 0:00:02]}  c4 {[%clk 0:00:40]} 40. Ne4 {[%clk 0:00:02]}  Kg7 {[%clk 0:00:35]} 41. Rg5+ {[%clk 0:00:02]}  Kf8 {[%clk 0:00:35]} 42. Rc5 {[%clk 0:00:01]}  Ne6 {[%clk 0:00:32]} 43. Rc8+ {[%clk 0:00:01]}  Kg7 {[%clk 0:00:32]} 44. Rc6 {[%clk 0:00:02]}  Nd4 {[%clk 0:00:31]} 45. Rxa6 {[%clk 0:00:02]}  Nxf3+ {[%clk 0:00:30]} 46. Kg3 {[%clk 0:00:02]}  Ne5 {[%clk 0:00:29]} 47. Nd6 {[%clk 0:00:02]}  Rf3+ {[%clk 0:00:28]} 48. Kg2 {[%clk 0:00:03]}  c3 {[%clk 0:00:20]} 49. Ra7+ {[%clk 0:00:01]}  Kf6 {[%clk 0:00:19]} 50. Nxb5 {[%clk 0:00:02]}  Rd3 {[%clk 0:00:17]} 51. Rc7 {[%clk 0:00:02]}  Rd2+ {[%clk 0:00:17]} 52. Kg3 {[%clk 0:00:02]}  c2 {[%clk 0:00:17]} 53. Na3 {[%clk 0:00:02]}  Rd3+ {[%clk 0:00:18]} 54. Kg2 {[%clk 0:00:02]}  Rxa3 {[%clk 0:00:18]} 55. Rxc2 {[%clk 0:00:03]}  Kf5 {[%clk 0:00:18]} 56. Rb2 {[%clk 0:00:02]}  Nc4 {[%clk 0:00:16]} 57. Rc2 {[%clk 0:00:02]}  Ne3+ {[%clk 0:00:16]} 0-1


[Site "https://www.chess.com"]

[Event "Titled Tuesday Blitz May 24 Early 2022"]
[White "Lauridsen, Jesper Morch"]
[Black "Sargsyan, Anna M."]
[WhiteFideId "1401890"]
[BlackFideId "13308130"]
[WhiteElo "2252"]
[BlackElo "2271"]
[Result "0-1"]
[Round "03"]
[TimeControl "180+1"]
[Date "2022.05.25"]
[WhiteClock "0:00:12"]
[BlackClock "0:01:45"]

1. e4 {[%clk 0:03:00]}  c6 {[%clk 0:03:00]} 2. d4 {[%clk 0:03:01]}  d5 {[%clk 0:03:00]} 3. Nc3 {[%clk 0:03:01]}  dxe4 {[%clk 0:03:00]} 4. Bc4 {[%clk 0:03:00]}  Nf6 {[%clk 0:02:59]} 5. f3 {[%clk 0:03:01]}  exf3 {[%clk 0:03:00]} 6. Nxf3 {[%clk 0:03:00]}  Bf5 {[%clk 0:03:01]} 7. O-O {[%clk 0:02:54]}  e6 {[%clk 0:03:01]} 8. Ng5 {[%clk 0:02:52]}  Bg6 {[%clk 0:03:01]} 9. Ne2 {[%clk 0:02:42]}  Bd6 {[%clk 0:02:47]} 10. Nf4 {[%clk 0:02:18]}  Bxf4 {[%clk 0:02:46]} 11. Bxf4 {[%clk 0:02:15]}  O-O {[%clk 0:02:46]} 12. Be5 {[%clk 0:01:42]}  Nbd7 {[%clk 0:02:42]} 13. Qe2 {[%clk 0:01:35]}  h6 {[%clk 0:02:38]} 14. Nf3 {[%clk 0:01:22]}  Bh5 {[%clk 0:02:31]} 15. Rad1 {[%clk 0:01:18]}  Nxe5 {[%clk 0:02:18]} 16. dxe5 {[%clk 0:01:16]}  Qb6+ {[%clk 0:02:17]} 17. Kh1 {[%clk 0:01:13]}  Nd5 {[%clk 0:02:17]} 18. Rde1 {[%clk 0:00:58]}  Qxb2 {[%clk 0:02:14]} 19. Rb1 {[%clk 0:00:46]}  Qa3 {[%clk 0:02:07]} 20. Rb3 {[%clk 0:00:41]}  Qe7 {[%clk 0:02:06]} 21. Qe4 {[%clk 0:00:32]}  b5 {[%clk 0:02:01]} 22. Bd3 {[%clk 0:00:27]}  Bg6 {[%clk 0:02:01]} 23. Qe2 {[%clk 0:00:23]}  Nf4 {[%clk 0:02:00]} 24. Qe3 {[%clk 0:00:20]}  Nd5 {[%clk 0:01:54]} 25. Qf2 {[%clk 0:00:17]}  Bxd3 {[%clk 0:01:54]} 26. Rxd3 {[%clk 0:00:17]}  c5 {[%clk 0:01:54]} 27. Nh4 {[%clk 0:00:16]}  c4 {[%clk 0:01:52]} 28. Rg3 {[%clk 0:00:15]}  Kh8 {[%clk 0:01:45]} 29. Qe2 {[%clk 0:00:12]}  Qxh4 {[%clk 0:01:45]} 0-1


[Site "https://www.chess.com"]

[Event "Titled Tuesday Blitz May 24 Early 2022"]
[White "Lazavik, Denis"]
[Black "Maksimovic, Bojan"]
[WhiteFideId "13515110"]
[BlackFideId "14408120"]
[WhiteElo "2437"]
[BlackElo "2448"]
[Result "1-0"]
[Round "03"]
[TimeControl "180+1"]
[Date "2022.05.24"]
[WhiteClock "0:00:09"]
[BlackClock "0:00:01"]

1. d4 {[%clk 0:03:00]}  d5 {[%clk 0:02:59]} 2. c4 {[%clk 0:03:01]}  e5 {[%clk 0:03:00]} 3. dxe5 {[%clk 0:03:01]}  d4 {[%clk 0:03:00]} 4. Nf3 {[%clk 0:03:01]}  Nc6 {[%clk 0:03:01]} 5. a3 {[%clk 0:03:01]}  Nge7 {[%clk 0:02:59]} 6. b4 {[%clk 0:02:57]}  Ng6 {[%clk 0:02:57]} 7. Bb2 {[%clk 0:02:57]}  a5 {[%clk 0:02:57]} 8. b5 {[%clk 0:02:55]}  Ncxe5 {[%clk 0:02:58]} 9. Qxd4 {[%clk 0:02:40]}  Qxd4 {[%clk 0:02:55]} 10. Bxd4 {[%clk 0:02:40]}  Nxc4 {[%clk 0:02:55]} 11. e3 {[%clk 0:02:39]}  Nd6 {[%clk 0:02:52]} 12. Nbd2 {[%clk 0:02:37]}  Bd7 {[%clk 0:02:52]} 13. a4 {[%clk 0:02:36]}  O-O-O {[%clk 0:02:47]} 14. Rc1 {[%clk 0:02:32]}  Kb8 {[%clk 0:02:46]} 15. Bd3 {[%clk 0:02:28]}  f6 {[%clk 0:02:40]} 16. O-O {[%clk 0:02:17]}  b6 {[%clk 0:02:32]} 17. Rfd1 {[%clk 0:02:14]}  Nb7 {[%clk 0:02:28]} 18. Nb3 {[%clk 0:02:03]}  Be6 {[%clk 0:02:17]} 19. Nfd2 {[%clk 0:01:55]}  Bb4 {[%clk 0:02:14]} 20. Be4 {[%clk 0:01:48]}  Rhe8 {[%clk 0:01:57]} 21. Bc6 {[%clk 0:01:47]}  Rf8 {[%clk 0:01:52]} 22. Rc2 {[%clk 0:01:14]}  Nf4 {[%clk 0:01:18]} 23. Nc1 {[%clk 0:00:30]}  Bf5 {[%clk 0:01:03]} 24. Be4 {[%clk 0:00:26]}  Bxe4 {[%clk 0:00:53]} 25. Nxe4 {[%clk 0:00:27]}  Ne6 {[%clk 0:00:54]} 26. Ne2 {[%clk 0:00:26]}  Nbc5 {[%clk 0:00:51]} 27. N4c3 {[%clk 0:00:22]}  Bxc3 {[%clk 0:00:46]} 28. Nxc3 {[%clk 0:00:22]}  Nxd4 {[%clk 0:00:45]} 29. exd4 {[%clk 0:00:23]}  Rfe8 {[%clk 0:00:35]} 30. Kf1 {[%clk 0:00:20]}  Ne4 {[%clk 0:00:34]} 31. g3 {[%clk 0:00:18]}  Nxc3 {[%clk 0:00:30]} 32. Rxc3 {[%clk 0:00:19]}  Re4 {[%clk 0:00:31]} 33. Rcd3 {[%clk 0:00:17]}  Kb7 {[%clk 0:00:28]} 34. f3 {[%clk 0:00:18]}  Re7 {[%clk 0:00:27]} 35. Kf2 {[%clk 0:00:18]}  Rde8 {[%clk 0:00:27]} 36. R1d2 {[%clk 0:00:18]}  Kc8 {[%clk 0:00:27]} 37. d5 {[%clk 0:00:18]}  Rd7 {[%clk 0:00:22]} 38. d6 {[%clk 0:00:19]}  Re6 {[%clk 0:00:10]} 39. dxc7 {[%clk 0:00:19]}  Rxd3 {[%clk 0:00:11]} 40. Rxd3 {[%clk 0:00:19]}  Kxc7 {[%clk 0:00:12]} 41. g4 {[%clk 0:00:19]}  Re7 {[%clk 0:00:08]} 42. h4 {[%clk 0:00:18]}  Re5 {[%clk 0:00:07]} 43. h5 {[%clk 0:00:17]}  f5 {[%clk 0:00:05]} 44. Rc3+ {[%clk 0:00:15]}  Kb7 {[%clk 0:00:05]} 45. Rd3 {[%clk 0:00:14]}  Kc7 {[%clk 0:00:04]} 46. Kg3 {[%clk 0:00:11]}  fxg4 {[%clk 0:00:05]} 47. Kxg4 {[%clk 0:00:12]}  h6 {[%clk 0:00:04]} 48. Rc3+ {[%clk 0:00:12]}  Kb7 {[%clk 0:00:04]} 49. Rc6 {[%clk 0:00:13]}  Rg5+ {[%clk 0:00:03]} 50. Kh4 {[%clk 0:00:13]}  Rf5 {[%clk 0:00:03]} 51. Rg6 {[%clk 0:00:13]}  Rf4+ {[%clk 0:00:03]} 52. Kg3 {[%clk 0:00:13]}  Rxa4 {[%clk 0:00:04]} 53. Rxg7+ {[%clk 0:00:13]}  Kb8 {[%clk 0:00:04]} 54. Rg6 {[%clk 0:00:14]}  Rb4 {[%clk 0:00:03]} 55. Rxb6+ {[%clk 0:00:14]}  Kc8 {[%clk 0:00:04]} 56. f4 {[%clk 0:00:11]}  a4 {[%clk 0:00:05]} 57. Kg4 {[%clk 0:00:11]}  a3 {[%clk 0:00:03]} 58. Ra6 {[%clk 0:00:12]}  Rb3 {[%clk 0:00:03]} 59. Kf5 {[%clk 0:00:10]}  Rxb5+ {[%clk 0:00:03]} 60. Kg6 {[%clk 0:00:10]}  Rb3 {[%clk 0:00:02]} 61. Kxh6 {[%clk 0:00:10]}  Kb7 {[%clk 0:00:02]} 62. Ra4 {[%clk 0:00:10]}  Rb6+ {[%clk 0:00:03]} 63. Kg5 {[%clk 0:00:08]}  Ra6 {[%clk 0:00:04]} 64. Rb4+ {[%clk 0:00:08]}  Kc6 {[%clk 0:00:04]} 65. Rb1 {[%clk 0:00:08]}  a2 {[%clk 0:00:04]} 66. Ra1 {[%clk 0:00:08]}  Kd7 {[%clk 0:00:05]} 67. h6 {[%clk 0:00:09]}  Ke7 {[%clk 0:00:05]} 68. h7 {[%clk 0:00:09]}  Ra5+ {[%clk 0:00:03]} 69. f5 {[%clk 0:00:09]}  Ra8 {[%clk 0:00:01]} 70. Rxa2 {[%clk 0:00:09]}  Ra3 {[%clk 0:00:01]} 1-0


[Site "https://www.chess.com"]

[Event "Titled Tuesday Blitz May 24 Early 2022"]
[White "McCoy, Owen"]
[Black "Polster, Christian"]
[WhiteFideId "30924502"]
[BlackFideId "12965081"]
[WhiteElo "2472"]
[BlackElo "2296"]
[Result "1-0"]
[Round "03"]
[TimeControl "180+1"]
[Date "2022.05.25"]
[WhiteClock "0:00:25"]
[BlackClock "0:00:02"]

1. e4 {[%clk 0:03:00]}  c5 {[%clk 0:02:59]} 2. Nf3 {[%clk 0:03:00]}  d6 {[%clk 0:02:59]} 3. d4 {[%clk 0:03:00]}  cxd4 {[%clk 0:03:00]} 4. Nxd4 {[%clk 0:03:01]}  Nf6 {[%clk 0:03:01]} 5. Nc3 {[%clk 0:03:02]}  a6 {[%clk 0:03:01]} 6. Be3 {[%clk 0:03:02]}  e5 {[%clk 0:03:02]} 7. Nb3 {[%clk 0:03:02]}  Be6 {[%clk 0:03:02]} 8. Qd2 {[%clk 0:03:00]}  Be7 {[%clk 0:03:00]} 9. f3 {[%clk 0:03:00]}  O-O {[%clk 0:02:54]} 10. O-O-O {[%clk 0:02:57]}  b5 {[%clk 0:02:48]} 11. g4 {[%clk 0:02:50]}  Nbd7 {[%clk 0:02:43]} 12. g5 {[%clk 0:02:44]}  b4 {[%clk 0:02:43]} 13. Ne2 {[%clk 0:02:41]}  Ne8 {[%clk 0:02:40]} 14. Kb1 {[%clk 0:02:25]}  a5 {[%clk 0:02:40]} 15. Nbc1 {[%clk 0:02:25]}  a4 {[%clk 0:02:34]} 16. f4 {[%clk 0:02:21]}  exf4 {[%clk 0:02:18]} 17. Bxf4 {[%clk 0:02:14]}  Nc5 {[%clk 0:01:58]} 18. Ng3 {[%clk 0:02:02]}  b3 {[%clk 0:01:26]} 19. cxb3 {[%clk 0:02:02]}  axb3 {[%clk 0:01:26]} 20. a3 {[%clk 0:02:02]}  Ra4 {[%clk 0:01:11]} 21. Bg2 {[%clk 0:01:45]}  Rc4 {[%clk 0:00:54]} 22. Qe3 {[%clk 0:01:42]}  Qa5 {[%clk 0:00:46]} 23. Nce2 {[%clk 0:01:31]}  Rc2 {[%clk 0:00:40]} 24. Rc1 {[%clk 0:01:24]}  Nc7 {[%clk 0:00:27]} 25. Nd4 {[%clk 0:01:02]}  Rxg2 {[%clk 0:00:23]} 26. Nc6 {[%clk 0:01:02]}  Qb6 {[%clk 0:00:06]} 27. Nxe7+ {[%clk 0:01:01]}  Kh8 {[%clk 0:00:06]} 28. Rhg1 {[%clk 0:00:48]}  Rxh2 {[%clk 0:00:05]} 29. Rh1 {[%clk 0:00:42]}  Rxh1 {[%clk 0:00:02]} 30. Rxh1 {[%clk 0:00:41]}  Na4 {[%clk 0:00:02]} 31. Qd2 {[%clk 0:00:25]} 1-0


[Site "https://www.chess.com"]